bitfinex/quotes_SOLUSD_20250818
["timestamp","ask_amount","ask_price","bid_price","bid_amount"]
[1755484042911,3.54589581,185.12,184.99,41.85521873]
[1755484042912,0.74,185.1,184.99,41.85521873]
[1755484043081,0.06,185.1,185.02,15.31464897]
[1755484043281,0.06,185.1,185.09,15.31464897]
[1755484045617,0.06,185.1,185.08,46.68302235]
[1755484045823,0.06,185.1,185.09,15.31464897]
[1755484046721,0.06,185.1,185.09,16.03464897]
[1755484047020,0.06,185.1,185.09,42.03464897]
[1755484047386,0.06,185.1,185.09,83.29464897]
[1755484047612,0.06,185.1,185.09,88.69742599]
[1755484047787,0.06,185.1,185.09,47.43742599]
[1755484047997,0.06,185.1,185.09,88.69742599]
[1755484048505,0.06,185.12,185.09,88.69742599]
[1755484048710,0.06,185.12,185.1,16.03464897]
[1755484049019,0.06,185.12,185.1,57.27464897]
[1755484049392,0.06,185.12,185.11,15.31464897]
[1755484049609,0.06,185.12,185.11,21.43684226]
[1755484051022,0.06,185.13,185.11,21.43684226]
[1755484051188,0.06,185.14,185.12,16.03464897]
[1755484051388,0.06,185.15,185.13,71.84929794]
[1755484051708,0.68,185.23,185.15,15.31464897]
[1755484051908,7.71907112,185.22,185.16,56.53464897]
[1755484052089,0.68,185.23,185.16,56.53464897]
[1755484052288,0.68,185.23,185.16,57.25464897]
[1755484053523,0.68,185.23,185.16,62.65538346]
[1755484054394,5.49698141,185.29,185.16,34.9372197]
[1755484054395,15.41464897,185.29,185.16,34.9372197]
[1755484054616,0.68,185.24,185.21,15.31464897]
[1755484054795,4.53097218,185.23,185.16,45.62257073]
[1755484055011,7.70180552,185.22,185.21,15.31464897]
[1755484055222,0.68,185.24,185.21,56.51464897]
[1755484055527,3.85107969,185.23,185.21,41.2]
[1755484055835,0.68,185.27,185.22,5.39898499]
[1755484056013,8.37638246,185.26,185.22,5.39898499]
[1755484056348,8.37638246,185.25,185.22,5.39898499]
[1755484056644,7.69638246,185.24,185.22,5.39898499]
[1755484056856,0.68,185.25,185.22,20.71363396]
[1755484057536,8.36315882,185.24,185.23,41.18]
[1755484058098,8.36315882,185.24,185.2,5.39953837]
[1755484058308,7.68291502,185.23,185.21,41.18]
[1755484058520,0.68,185.24,185.21,56.49464897]
[1755484058705,3.83786027,185.23,185.22,15.31464897]
[1755484059012,15.20621557,185.29,185.22,15.31464897]
[1755484059013,31.20086454,185.29,185.22,16.03464897]
[1755484059223,11.13264081,185.28,185.24,15.31464897]
[1755484059412,7.67710762,185.27,185.25,56.49464897]
[1755484059612,0.78,185.29,185.26,46.57774747]
[1755484059819,7.67415422,185.28,185.26,46.57774747]
[1755484060121,7.67415422,185.28,185.2,13.49892008]
[1755484060122,7.67415422,185.27,185.21,0.72]
[1755484060299,0.1,185.29,185.22,41.16]
[1755484060300,23.66880319,185.26,185.22,41.16]
[1755484060514,7.67415422,185.25,185.23,15.31464897]
[1755484060748,7.67415422,185.24,185.22,41.16]
[1755484060958,15.99464897,185.26,185.22,41.16]
[1755484061255,0.68,185.24,185.22,41.16]
[1755484061452,3.83260151,185.23,185.22,41.16]
[1755484061630,0.68,185.26,185.22,61.87363396]
[1755484061815,3.83049797,185.25,185.22,61.87363396]
[1755484062017,3.83049797,185.24,185.22,61.87363396]
[1755484062217,0.68,185.26,185.22,61.87363396]
[1755484062529,0.1,185.29,185.25,15.31464897]
[1755484062735,3.8288845,185.28,185.26,56.47464897]
[1755484063070,3.8288845,185.27,185.26,41.16]
[1755484063235,0.68,185.27,185.26,41.16]
[1755484063438,4.50640481,185.27,185.26,41.16]
[1755484063744,4.50640481,185.27,185.26,41.14]
[1755484064113,3.82640481,185.27,185.26,41.14]
[1755484065054,23.62909483,185.27,185.26,41.14]
[1755484065215,7.65444586,185.27,185.26,41.14]
[1755484065638,7.65444586,185.27,185.26,56.45464897]
[1755484065842,7.65444586,185.27,185.26,41.14]
[1755484066454,7.65444586,185.27,185.26,56.45464897]
[1755484066747,7.65444586,185.27,185.26,57.16464897]
[1755484066944,7.65444586,185.27,185.26,41.85]
[1755484067240,7.65444586,185.27,185.26,41.14]
[1755484067449,8.31444586,185.27,185.26,41.14]
[1755484067651,11.76268133,185.27,185.26,41.14]
[1755484067834,15.10621557,185.26,185.25,41.12]
[1755484068030,26.8688969,185.26,185.25,41.12]
[1755484068517,26.2088969,185.26,185.25,41.12]
[1755484068841,7.65444586,185.26,185.25,41.83]
[1755484069046,7.65444586,185.26,185.25,57.14464897]
[1755484069439,7.66494324,185.26,185.25,57.14464897]
[1755484069743,7.66494324,185.26,185.25,56.43464897]
[1755484069948,11.11951944,185.26,185.25,56.43464897]
[1755484070145,11.11951944,185.26,185.23,0.71]
[1755484070146,11.11951944,185.26,185.23,15.31464897]
[1755484070445,11.12062734,185.25,185.24,41.81]
[1755484070746,11.12488659,185.25,185.24,57.12464897]
[1755484070929,11.12488659,185.25,185.24,41.1]
[1755484071242,11.12488659,185.25,185.24,57.12464897]
[1755484071561,7.28634816,185.25,185.24,57.12464897]
[1755484071723,15.20621557,185.29,185.24,57.12464897]
[1755484071923,11.14383388,185.28,185.25,20.71275963]
[1755484072229,3.45878599,185.27,185.26,41.1]
[1755484072624,7.30240109,185.27,185.26,41.1]
[1755484072824,3.45878599,185.27,185.26,41.1]
[1755484073025,4.11878599,185.27,185.26,41.1]
[1755484073237,7.9599977,185.27,185.26,41.1]
[1755484073626,3.84121171,185.27,185.26,41.1]
[1755484073836,15.86621557,185.29,185.26,41.1]
[1755484074020,15.10621557,185.26,185.21,5.39927649]
[1755484074219,0.66,185.28,185.24,15.31464897]
[1755484074431,7.96581636,185.27,185.25,41.1]
[1755484074736,15.10621557,185.28,185.26,41.1]
[1755484074940,15.10621557,185.28,185.27,41.08]
[1755484075155,3.84825161,185.28,185.27,41.08]
[1755484075465,3.84825161,185.28,185.27,56.39464897]
[1755484075668,3.85180801,185.28,185.27,56.39464897]
[1755484075965,3.85180801,185.28,185.27,41.08]
[1755484076172,3.85180801,185.28,185.27,56.39464897]
[1755484077170,3.85180801,185.28,185.27,41.08]
[1755484078538,3.85180801,185.28,185.27,56.39464897]
[1755484078733,3.86403851,185.28,185.27,56.39464897]
[1755484079043,4.52403851,185.28,185.25,15.31464897]
[1755484079236,15.20621557,185.29,185.27,41.08]
[1755484079432,7.35602435,185.28,185.27,41.08]
[1755484079746,23.12223992,185.28,185.27,41.08]
[1755484080935,22.46223992,185.28,185.27,41.08]
[1755484081343,22.46161281,185.28,185.27,41.08]
[1755484081870,23.12738841,185.28,185.27,41.08]
[1755484082371,26.34650188,185.28,185.27,41.06]
[1755484082574,7.36117284,185.28,185.27,57.08464897]
[1755484082935,7.36117284,185.28,185.27,53.81976897]
[1755484083142,7.36117284,185.28,185.27,56.37464897]
[1755484083567,11.2455124,185.28,185.27,41.06]
[1755484083951,11.2455124,185.28,185.26,15.31464897]
[1755484084167,7.36117284,185.27,185.25,15.31464897]
[1755484084366,7.38224357,185.26,185.21,26.71]
[1755484084561,7.38224357,185.25,185.22,41.77]
[1755484084752,21.263285,185.29,185.24,15.31464897]
[1755484085066,11.27062781,185.28,185.26,15.31464897]
[1755484085271,11.27422684,185.27,185.25,41.06]
[1755484085480,3.88644698,185.26,185.25,41.77]
[1755484085642,7.38684291,185.26,185.25,41.06]
[1755484086755,11.28229886,185.26,185.25,41.06]
[1755484087079,11.94229886,185.26,185.19,0.71]
[1755484087384,42.3631634,185.25,185.2,41.04]
[1755484087567,42.3631634,185.25,185.17,0.74]
[1755484087568,15.10621557,185.23,185.17,15.34464897]
[1755484087740,15.10621557,185.19,185.17,41.07]
[1755484088066,26.38851443,185.18,185.17,41.07]
[1755484089366,32.44866563,185.18,185.17,0.03]
[1755484089567,47.7633146,185.18,185.17,0.03]
[1755484089768,28.55320968,185.18,185.17,0.03]
[1755484089951,23.15305848,185.18,185.17,0.03]
[1755484090154,32.47207367,185.18,185.17,0.03]
[1755484090365,32.47207367,185.18,185.17,15.34464897]
[1755484090366,26.41192247,185.18,185.17,15.34464897]
[1755484090585,7.40308556,185.18,185.17,15.34464897]
[1755484090802,7.40308556,185.18,185.17,56.38464897]
[1755484090803,7.40898824,185.18,185.17,56.38464897]
[1755484091393,3.90859231,185.18,185.17,62.4950918]
[1755484092381,15.10621557,185.23,185.17,62.4950918]
[1755484092596,7.4388905,185.22,185.2,15.31464897]
[1755484092897,15.10621557,185.24,185.21,56.35464897]
[1755484093199,7.43847945,185.23,185.22,15.31464897]
[1755484093692,8.09847945,185.23,185.21,41.04]
[1755484093891,8.09847945,185.22,185.17,0.03]
[1755484094097,7.43847945,185.21,185.18,41.04]
[1755484094265,5.02302708,185.25,185.2,15.31464897]
[1755484094469,7.44276404,185.24,185.23,15.31464897]
[1755484094680,7.44276404,185.24,185.23,56.35464897]
[1755484094995,7.44276404,185.24,185.23,41.04]
[1755484096504,12.84116611,185.24,185.23,41.04]
[1755484096829,13.50116611,185.24,185.23,41.04]
[1755484098007,15.10621557,185.23,185.2,41.02]
[1755484098211,15.10621557,185.2,185.17,0.03]
[1755484098510,35.82101574,185.18,185.17,0.03]
[1755484098802,39.34548756,185.18,185.17,0.03]
[1755484098985,24.69083859,185.18,185.17,0.03]
[1755484101405,36.48101574,185.18,185.17,0.03]
[1755484102008,40.00062285,185.18,185.17,0.03]
[1755484102532,40.00062285,185.18,185.17,1e-08]
[1755484103608,15.10621557,185.17,185.16,1e-08]
[1755484103817,41.10621557,185.15,185.14,1e-08]
[1755484104117,82.12621557,185.15,185.14,1e-08]
[1755484104332,98.10086454,185.15,185.14,1e-08]
[1755484104622,98.08086454,185.15,185.14,1e-08]
[1755484105150,62.48189073,185.15,185.14,1e-08]
[1755484105304,103.50189073,185.15,185.14,1e-08]
[1755484106019,107.0156751,185.15,185.14,1e-08]
[1755484107316,62.48189073,185.15,185.14,1e-08]
[1755484107520,103.48189073,185.15,185.14,1e-08]
[1755484108033,61.82189073,185.15,185.14,1e-08]
[1755484109140,46.50724176,185.15,185.14,1e-08]
[1755484109347,15.10621557,185.15,185.14,1e-08]
[1755484109528,13.49847047,185.21,185.14,15.31464898]
[1755484109835,56.42086454,185.19,185.14,1e-08]
[1755484110035,15.10621557,185.19,185.14,1e-08]
[1755484110244,15.31464897,185.17,185.14,1e-08]
[1755484110443,15.10621557,185.15,185.14,1e-08]
[1755484110629,15.10621557,185.16,185.14,1e-08]
[1755484112444,30.42086454,185.16,185.14,1e-08]
[1755484112627,26.0,185.19,185.14,1e-08]
[1755484112628,35.82189073,185.15,185.14,1e-08]
[1755484113033,15.10621557,185.15,185.14,1e-08]
[1755484115137,20.50724176,185.15,185.14,1e-08]
[1755484117349,35.82189073,185.15,185.14,1e-08]
[1755484118126,20.50724176,185.15,185.14,1e-08]
[1755484119453,26.0,185.19,185.14,15.31464898]
[1755484119653,41.10621557,185.18,185.15,15.31464897]
[1755484119864,15.10621557,185.17,185.15,15.31464897]
[1755484120041,15.10621557,185.2,185.16,15.31464897]
[1755484120659,15.10621557,185.2,185.14,1e-08]
[1755484120660,15.31464897,185.19,185.14,1e-08]
[1755484120858,30.42086454,185.17,185.14,1e-08]
[1755484121232,30.42086454,185.15,185.14,1e-08]
[1755484121429,61.82189073,185.15,185.14,1e-08]
[1755484122335,80.29632974,185.15,185.14,1e-08]
[1755484122538,30.42086454,185.14,185.13,1e-08]
[1755484122744,15.10621557,185.13,185.12,1e-08]
[1755484123047,33.93530355,185.13,185.12,1e-08]
[1755484123263,46.36102619,185.15,185.12,1e-08]
[1755484123264,15.10621557,185.14,185.12,1e-08]
[1755484123463,20.50765873,185.14,185.12,1e-08]
[1755484124469,15.10621557,185.15,185.13,15.31464897]
[1755484125566,15.10621557,185.15,185.12,1e-08]
[1755484125567,15.10621557,185.15,185.12,15.31464898]
[1755484125771,15.10621557,185.15,185.12,1e-08]
[1755484125772,20.50730144,185.15,185.12,1e-08]
[1755484126460,35.82195041,185.15,185.12,1e-08]
[1755484126670,46.50730144,185.15,185.12,1e-08]
[1755484126834,61.82195041,185.15,185.12,1e-08]
[1755484127371,46.50730144,185.15,185.12,1e-08]
[1755484127543,61.82195041,185.15,185.12,1e-08]
[1755484129474,56.33464897,185.19,185.13,15.31464897]
[1755484129779,41.10621557,185.15,185.14,15.31464897]
[1755484130266,15.10621557,185.15,185.14,15.31464897]
[1755484130479,15.10621557,185.15,185.12,1e-08]
[1755484130665,15.10621557,185.14,185.12,1e-08]
[1755484133359,15.10621557,185.15,185.13,15.31464897]
[1755484133572,15.10621557,185.15,185.12,1e-08]
[1755484133868,30.42086454,185.15,185.12,1e-08]
[1755484134073,30.42086454,185.13,185.12,1e-08]
[1755484134639,39.3563379,185.13,185.12,1e-08]
[1755484135674,65.3563379,185.13,185.12,1e-08]
[1755484136078,53.96902201,185.13,185.12,1e-08]
[1755484136377,65.3563379,185.13,185.12,1e-08]
[1755484136675,43.28336329,185.13,185.12,1e-08]
[1755484137643,43.28489329,185.13,185.12,1e-08]
[1755484137843,43.28498032,185.13,185.12,1e-08]
[1755484138050,39.3563379,185.13,185.12,1e-08]
[1755484138552,24.04168893,185.13,185.12,1e-08]
[1755484139556,20.50782524,185.13,185.12,1e-08]
[1755484139875,24.04644577,185.13,185.12,1e-08]
[1755484140180,39.36109474,185.13,185.12,1e-08]
[1755484140490,24.04644577,185.13,185.12,1e-08]
[1755484140981,39.36109474,185.13,185.12,1e-08]
[1755484141551,24.04644577,185.13,185.12,1e-08]
[1755484141773,39.36109474,185.13,185.12,1e-08]
[1755484142277,24.04644577,185.13,185.12,1e-08]
[1755484142465,37.41877759,185.13,185.12,1e-08]
[1755484144082,37.42020947,185.13,185.12,1e-08]
[1755484144782,37.42133773,185.13,185.12,1e-08]
[1755484146366,33.48192944,185.13,185.12,1e-08]
[1755484146960,24.04644577,185.13,185.12,1e-08]
[1755484147388,33.48192944,185.13,185.12,1e-08]
[1755484147973,18.6448361,185.13,185.12,1e-08]
[1755484151799,15.10621557,185.13,185.12,1e-08]
[1755484152483,24.04487864,185.13,185.12,1e-08]
[1755484152793,33.48036231,185.13,185.12,1e-08]
[1755484153394,24.04487864,185.13,185.12,1e-08]
[1755484153573,33.48036231,185.13,185.12,1e-08]
[1755484154281,37.40395595,185.13,185.12,1e-08]
[1755484154893,27.96847228,185.13,185.12,1e-08]
[1755484155194,37.40395595,185.13,185.12,1e-08]
[1755484155573,15.10621557,185.1,185.08,0.03]
[1755484155777,54.07875264,185.09,185.08,0.03]
[1755484156172,15.10621557,185.07,185.06,0.03]
[1755484156483,59.48211353,185.07,185.06,0.03]
[1755484157702,24.04662986,185.07,185.06,0.03]
[1755484157877,33.48211353,185.07,185.06,0.03]
[1755484158381,74.32211353,185.07,185.06,0.03]
[1755484159200,74.32211353,185.07,185.04,0.03]
[1755484159201,50.54169924,185.05,185.04,0.03]
[1755484159503,50.54169924,185.05,185.0,5.0]
[1755484159504,50.54169924,185.01,185.0,5.0]
[1755484159697,59.4687191,185.01,185.0,5.0]
[1755484160272,55.94681247,185.01,185.0,5.0]
[1755484160689,59.4653997,185.01,185.0,5.0]
[1755484161000,15.10621557,185.0,184.98,0.2]
[1755484161175,65.38169924,184.99,184.98,0.2]
[1755484161785,70.78739684,184.99,184.98,0.2]
[1755484162283,15.10621557,184.99,184.98,0.2]
[1755484165299,20.51191317,184.99,184.98,0.2]
[1755484165546,15.10621557,184.99,184.98,0.2]
[1755484165705,15.10621557,184.99,184.98,9.63548367]
[1755484165874,15.10621557,185.02,184.98,9.63548367]
[1755484166186,15.10621557,185.02,185.0,9.43548367]
[1755484166383,40.82,185.05,185.01,9.43548367]
[1755484166597,0.06,185.13,185.03,9.43548367]
[1755484166787,15.10621557,185.08,185.04,9.43548367]
[1755484167102,15.10621557,185.08,185.05,9.43548367]
[1755484167308,15.10621557,185.08,185.07,9.43548367]
[1755484167500,66.82,185.11,185.07,9.43548367]
[1755484167704,40.82,185.11,185.06,9.43548367]
[1755484167881,5.40306894,185.08,185.03,9.43548367]
[1755484168082,5.40306894,185.08,185.04,9.43548367]
[1755484168676,15.10621557,185.07,185.04,9.43548367]
[1755484168876,15.10621557,185.07,185.0,26.0]
[1755484169086,15.10621557,185.07,185.04,9.43548367]
[1755484169295,15.10621557,185.07,185.0,9.435484]
[1755484169496,24.54169924,185.07,184.98,0.2]
[1755484169697,15.10621557,185.03,184.98,9.63548367]
[1755484170007,29.94648956,185.03,184.98,0.2]
[1755484170822,20.51100589,185.03,184.98,0.2]
[1755484171194,15.10621557,185.03,184.99,9.43548367]
[1755484171817,15.10621557,185.03,184.98,9.63548367]
[1755484172194,15.10621557,185.03,184.99,9.43548367]
[1755484172395,15.10621557,185.03,184.99,15.28900248]
[1755484173296,15.10621557,185.05,185.01,15.28900248]
[1755484173822,15.10621557,185.05,185.02,15.28900248]
[1755484174127,66.82,185.08,184.98,5.60590754]
[1755484174128,66.82,185.08,185.04,15.28900248]
[1755484174421,15.10621557,185.07,185.05,15.96900248]
[1755484174732,15.10621557,185.07,185.06,0.68]
[1755484175421,15.10621557,185.1,185.06,15.96900248]
[1755484175622,15.10621557,185.1,185.09,15.28900248]
[1755484175826,15.16621557,185.12,185.09,15.96900248]
[1755484176031,15.16621557,185.12,185.1,0.68]
[1755484176032,20.56819342,185.12,185.1,0.68]
[1755484176325,20.56819342,185.12,185.08,15.28900248]
[1755484176627,16.00900248,185.11,185.02,57.016841]
[1755484176840,15.10621557,185.08,185.04,0.68]
[1755484177031,15.10621557,185.06,185.02,0.68]
[1755484177421,0.06,185.03,185.02,15.28900248]
[1755484177936,0.06,185.03,185.02,15.96900248]
[1755484178118,0.06,185.03,185.02,0.68]
[1755484178319,0.06,185.03,185.02,15.96900248]
[1755484179303,0.06,185.03,185.02,6.0848211]
[1755484180630,0.06,185.03,185.02,15.96900248]
[1755484180810,0.06,185.03,185.02,0.68]
[1755484181355,0.06,185.03,185.02,15.96900248]
[1755484183245,0.06,185.03,185.02,21.37382358]
[1755484184149,0.06,185.03,185.0,15.28900248]
[1755484184367,0.06,185.03,185.01,15.28900248]
[1755484184666,0.06,185.03,185.02,15.28900248]
[1755484184878,0.06,185.03,185.02,15.96900248]
[1755484185733,0.06,185.03,185.02,21.37382358]
[1755484186231,0.06,185.03,185.02,36.48003858]
[1755484187237,0.06,185.03,185.02,71.81521748]
[1755484188438,0.06,185.03,185.02,56.70900248]
[1755484189338,0.06,185.03,185.02,62.09382358]
[1755484189739,0.06,185.03,185.02,56.68900248]
[1755484189962,0.06,185.03,185.02,56.00900248]
[1755484190435,0.06,185.03,185.02,40.72]
[1755484190871,15.84621557,185.03,184.99,16.239478]
[1755484191182,15.84621557,185.03,184.99,40.72]
[1755484191391,0.68,185.02,184.99,40.72]
[1755484191897,0.68,185.01,184.99,40.72]
[1755484192096,15.78621557,185.01,184.99,40.72]
[1755484193361,31.07521805,185.01,184.99,40.72]
[1755484193781,36.48047567,185.01,184.99,40.72]
[1755484194050,21.19147319,185.01,184.99,40.72]
[1755484195070,15.10621557,185.01,184.99,56.69900248]
[1755484195473,15.10621557,185.01,184.99,40.72]
[1755484195674,15.78621557,185.01,184.99,40.72]
[1755484196091,15.10621557,185.01,184.99,40.72]
[1755484196906,20.51143553,185.01,184.99,40.72]
[1755484197201,21.19143553,185.01,184.99,40.72]
[1755484198500,20.51143553,185.01,184.99,40.72]
[1755484198865,21.19143553,185.01,184.99,40.72]
[1755484199406,15.10621557,185.01,184.99,40.72]
[1755484200375,20.51142093,185.01,184.99,40.72]
[1755484201197,25.23072432,185.0,184.98,0.2]
[1755484201405,24.55072432,184.99,184.98,0.2]
[1755484201584,15.78621557,184.99,184.98,0.2]
[1755484201898,15.10621557,184.99,184.98,0.2]
[1755484203915,30.63642192,184.99,184.98,0.2]
[1755484204799,34.14796399,184.99,184.98,0.2]
[1755484205002,24.70345524,184.99,184.98,0.2]
[1755484205200,34.14796399,184.99,184.98,0.2]
[1755484206486,24.70345524,184.99,184.98,0.2]
[1755484206806,15.10621557,184.96,184.95,0.2]
[1755484207019,28.06226639,184.96,184.95,0.2]
[1755484207513,69.40226639,184.96,184.95,0.2]
[1755484208088,15.78621557,184.96,184.95,0.2]
[1755484208527,21.19278996,184.96,184.95,0.2]
[1755484208888,20.51278996,184.96,184.95,0.2]
[1755484210221,15.10621557,184.98,184.95,15.49907295]
[1755484210426,15.16621557,185.0,184.97,15.29907295]
[1755484210679,0.06,185.0,184.99,15.29907295]
[1755484213102,0.06,185.0,184.96,0.69]
[1755484213309,0.06,185.0,184.95,0.2]
[1755484213310,0.06,185.0,184.99,15.29907295]
[1755484214040,15.10621557,184.99,184.95,0.2]
[1755484214342,15.78621557,184.99,184.95,0.2]
[1755484215193,0.06,185.0,184.97,15.29907295]
[1755484215402,0.06,185.0,184.99,15.29907295]
[1755484215802,15.16621557,185.0,184.99,15.29907295]
[1755484216202,0.06,185.0,184.99,15.29907295]
[1755484216419,0.06,185.0,184.99,15.99907295]
[1755484216599,0.06,185.0,184.97,0.7]
[1755484216798,5.46552846,185.0,184.95,0.9]
[1755484217098,15.10621557,184.99,184.97,15.29907295]
[1755484217303,0.06,185.0,184.98,15.99907295]
[1755484217509,0.06,185.0,184.99,15.29907295]
[1755484218695,0.06,185.0,184.98,0.7]
[1755484218896,0.06,185.0,184.97,15.29907295]
[1755484219204,0.06,185.0,184.95,0.2]
[1755484219399,0.06,185.0,184.97,15.29907295]
[1755484219998,15.10621557,184.99,184.96,15.29907295]
[1755484220340,15.10621557,184.99,184.97,15.29907295]
[1755484220500,0.06,185.0,184.97,15.29907295]
[1755484221136,15.10621557,184.99,184.96,15.29907295]
[1755484221425,5.40598983,184.98,184.96,15.29907295]
[1755484222012,15.10621557,184.97,184.95,0.2]
[1755484222329,15.10621557,184.97,184.95,15.49907295]
[1755484222533,15.10621557,184.97,184.95,0.2]
[1755484223299,20.51278996,184.96,184.95,0.2]
[1755484224191,21.18278996,184.96,184.95,0.2]
[1755484224393,36.48186291,184.96,184.95,0.2]
[1755484225195,39.99601628,184.96,184.95,0.2]
[1755484225397,15.10621557,184.95,184.94,0.03]
[1755484225596,34.5884703,184.95,184.93,1e-08]
[1755484225832,75.1684703,184.94,184.93,1e-08]
[1755484226705,71.65528852,184.94,184.93,1e-08]
[1755484227112,75.16596208,184.94,184.93,1e-08]
[1755484227346,77.06244759,184.94,184.93,1e-08]
[1755484227994,61.76337464,184.94,184.93,1e-08]
[1755484228512,77.06244759,184.94,184.93,1e-08]
[1755484228702,61.76337464,184.94,184.93,1e-08]
[1755484228903,15.10621557,184.94,184.93,1e-08]
[1755484229116,15.10621557,184.94,184.93,15.29907296]
[1755484229500,20.51337464,184.94,184.93,1e-08]
[1755484231432,20.51337464,184.94,184.93,0.70000001]
[1755484231727,15.10621557,184.94,184.93,15.99907296]
[1755484231935,0.73,185.0,184.93,15.99907296]
[1755484232106,15.10621557,184.97,184.96,15.29907295]
[1755484232307,15.10621557,184.97,184.96,15.99907295]
[1755484232717,15.10621557,184.97,184.95,15.29907295]
[1755484233007,15.10621557,184.97,184.95,15.99907295]
[1755484234210,0.06,185.0,184.96,15.99907295]
[1755484234211,15.16621557,185.0,184.96,15.99907295]
[1755484234415,15.16621557,185.0,184.99,15.29907295]
[1755484234718,15.16621557,185.0,184.99,15.99907295]
[1755484234917,15.16621557,185.0,184.99,0.7]
[1755484235134,15.16621557,185.0,184.98,15.29907295]
[1755484235337,15.16621557,185.0,184.98,15.99907295]
[1755484235651,15.16621557,185.0,184.99,0.7]
[1755484235955,15.16621557,185.0,184.99,15.99907295]
[1755484236110,15.16621557,185.0,184.99,0.7]
[1755484236308,15.16621557,185.0,184.98,15.29907295]
[1755484236541,15.16621557,185.0,184.98,15.99907295]
[1755484237007,15.16621557,185.0,184.99,0.7]
[1755484237443,15.16621557,185.0,184.99,15.99907295]
[1755484238145,15.16621557,185.0,184.98,15.29907295]
[1755484238316,15.16621557,185.0,184.98,15.99907295]
[1755484238743,0.06,185.0,184.99,15.29907295]
[1755484239246,0.06,185.0,184.98,15.29907295]
[1755484239537,0.06,185.0,184.98,15.99907295]
[1755484239744,5.4654054,185.0,184.98,0.7]
[1755484239948,0.06,185.0,184.98,0.7]
[1755484240624,0.06,185.0,184.98,15.99907295]
[1755484240839,0.06,185.0,184.98,15.29907295]
[1755484241042,0.06,185.0,184.97,15.29907295]
[1755484241247,0.06,185.0,184.98,15.29907295]
[1755484242063,0.06,185.0,184.96,0.7]
[1755484242267,0.06,185.0,184.98,15.29907295]
[1755484243662,0.06,185.0,184.98,15.99907295]
[1755484244475,0.06,185.0,184.98,9.44420776]
[1755484245037,0.06,185.0,184.98,10.14420776]
[1755484245438,0.06,185.0,184.98,9.44420776]
[1755484245658,0.06,185.0,184.97,9.44420776]
[1755484246046,0.06,185.0,184.97,10.14420776]
[1755484246246,0.06,185.0,184.98,10.16420776]
[1755484246458,0.06,185.0,184.98,0.72]
[1755484246645,0.06,185.0,184.98,10.16420776]
[1755484247050,0.06,185.0,184.98,0.72]
[1755484247250,0.06,185.0,184.94,5.40691595]
[1755484247462,15.10621557,184.99,184.96,9.44420776]
[1755484247764,15.10621557,184.99,184.96,10.16420776]
[1755484247957,15.10621557,184.99,184.97,9.44420776]
[1755484248160,15.10621557,184.99,184.93,5.40734916]
[1755484248349,15.10621557,184.99,184.97,10.16420776]
[1755484248554,15.10621557,184.99,184.98,9.44420776]
[1755484248756,5.40577029,184.99,184.97,10.16420776]
[1755484248970,0.06,185.0,184.98,10.16420776]
[1755484249341,15.10621557,184.99,184.95,0.72]
[1755484249545,15.10621557,184.99,184.96,9.44420776]
[1755484249854,15.10621557,184.97,184.94,9.44420776]
[1755484250155,15.10621557,184.97,184.94,0.72]
[1755484250360,15.10621557,184.97,184.94,10.16420776]
[1755484251069,15.10621557,184.97,184.95,10.16420776]
[1755484252352,0.06,185.0,184.96,10.16420776]
[1755484252549,15.16621557,185.0,184.98,9.44420776]
[1755484252753,0.06,185.0,184.98,10.16420776]
[1755484253077,26.0,184.97,184.94,10.16420776]
[1755484253375,26.0,184.97,184.95,9.44420776]
[1755484253774,26.0,184.97,184.94,0.72]
[1755484253775,26.0,184.97,184.94,10.16420776]
[1755484254273,5.40657439,184.96,184.95,9.44420776]
[1755484254446,5.40657439,184.96,184.95,10.16420776]
[1755484255944,5.40657439,184.96,184.95,9.44420776]
[1755484256475,20.51278996,184.96,184.95,9.44420776]
[1755484256870,20.51278996,184.96,184.95,10.16420776]
[1755484257564,13.57351351,185.0,184.95,10.16420776]
[1755484257565,0.06,185.0,184.95,10.16420776]